Workbook

Sheet HFR-Budget
B2: Table 1: Replacement Heifer Budget, 100 Head - 2020 | O2: EBB-HFR-20
B3: Wintered to Go to Grass, Bought in Fall, Sold in Winter | L3: No. of Head: | M3: 100
H5: Total Number
D6: Weight | H6: of Head | J6: Price or | L6: Total | M6: Value or
D7: Each | F7: Unit | H7: or Units | J7: Cost/Unit | L7: Value | M7: Cost/Head | O7: Your Value
C8: GROSS RETURNS
C9: Bred Replacement Heifers | D9: 1100 | F9: hd | H9: 90 | J9: 1450 | L9: =J9*H9 -> 130500 | M9: =L9/$M$3 -> 1305
C10: Cull Heifers | D10: 1000 | F10: lbs | H10: 9 | J10: 1 | L10: =D10*H10*J10 -> 9000 | M10: =L10/$M$3 -> 90
C11: TOTAL GROSS RETURNS | L11: =SUM(L9:L10) -> 139500 | M11: =SUM(M9:M10) -> 1395
C13: OPERATING COSTS
C14: Purchased/Transfered Heifers | D14: 500 | F14: lbs | H14: 100 | J14: 1.7 | L14: =D14*H14*J14 -> 85000 | M14: =L14/$M$3 -> 850
C15: Alfalfa Hay | F15: ton | H15: 251 | J15: 150 | L15: =H15*J15 -> 37650 | M15: =L15/$M$3 -> 376.5
C16: Supplement | F16: cwt | H16: 0 | J16: 13 | L16: =H16*J16 -> 0 | M16: =L16/$M$3 -> 0
C17: Yardage | F17: hd-day | H17: =7*30*M3 -> 21000 | J17: 0.35 | L17: 7350 | M17: 73.5
C18: Pasture | F18: AUM | H18: 550 | J18: 20 | L18: =H18*J18 -> 11000 | M18: 110
C19: Hauling | F19: head | H19: 100 | J19: 15 | L19: 1500 | M19: 15
C20: Veterinary | F20: head | H20: 100 | J20: ='Vet&Breeding'!T16 -> 29.125 | L20: 2912.5 | M20: 29.125
C21: Breeding | F21: head | H21: 100 | J21: ='Vet&Breeding'!T31 -> 69.9 | L21: =H21*J21 -> 6990 | M21: =L21/$M$3 -> 69.9
C22: Hired Labor | F22: hour | H22: 200 | J22: 17.5 | L22: =H22*J22 -> 3500 | M22: 35
C23: Salt/Mineral | F23: cwt | H23: 27 | J23: 18 | L23: 486 | M23: 4.86
C24: Marketing | F24: head | H24: 99 | J24: 2.96 | L24: 293.04 | M24: 2.9304
C25: Commision | F25: head | H25: 9 | J25: =D10*J10*0.025 -> 25 | L25: =H25*J25 -> 225 | M25: =L25/$M$3 -> 2.25
C26: Miscellaneous | F26: head | H26: 100 | J26: 10 | L26: 1000 | M26: 10
C28: Interest on Operating Capital | F28: $ | H28: =SUM(L14:L27)*0.75 -> 118429.905 | J28: 0.07 | L28: =H28*J28*0.75 -> 6217.570013 | M28: 62.17570013
C29: TOTAL OPERATING COSTS | L29: =SUM(L14:L28) -> 164124.11 | M29: 1641.2411
C31: NET RETURNS ABOVE OPERATING COSTS | L31: =L11-L29 -> -24624.11001 | M31: =L31/$M$3 -> -246.2411001

Sheet Monthly Flows
B2: Table 2: Monthly Summary of Returns and Expenses. | R2: EBB-HFR-20
D3: Nov | E3: Dec | F3: Jan | G3: Feb | H3: Mar | I3: Apr | J3: May | K3: Jun | L3: Jul | M3: Aug | N3: Sep | O3: Oct | P3: Nov | Q3: Dec | R3: Value
B5: Production:
C6: ='HFR-Budget'!C9 -> Bred Replacement Heifers | Q6: =R6 -> 130500 | R6: ='HFR-Budget'!L9 -> 130500
C7: ='HFR-Budget'!C10 -> Cull Heifers | P7: =R7 -> 9000 | R7: ='HFR-Budget'!L10 -> 9000
B9: Total Receipts | D9: =SUM(D6:D8) -> 0 | E9: 0 | F9: 0 | G9: 0 | H9: 0 | I9: 0 | J9: 0 | K9: 0 | L9: 0 | M9: 0 | N9: 0 | O9: 0 | P9: 9000 | Q9: 130500 | R9: ='HFR-Budget'!L11 -> 139500
B12: Operating Inputs:
C13: ='HFR-Budget'!C14 -> Purchased/Transfered Heifers | D13: =R13 -> 85000 | R13: ='HFR-Budget'!L14 -> 85000
C14: ='HFR-Budget'!C15 -> Alfalfa Hay | D14: =$R$14*0.09 -> 3388.5 | E14: =$R$14*0.1 -> 3765 | F14: =$R$14*0.11 -> 4141.5 | G14: =$R$14*0.12 -> 4518 | H14: =$R$14*0.12 -> 4518 | I14: =$R$14*0.13 -> 4894.5 | J14: =$R$14*0.14 -> 5271 | P14: =$R$14*0.09 -> 3388.5 | Q14: =$R$14*0.1 -> 3765 | R14: ='HFR-Budget'!L15 -> 37650
C15: ='HFR-Budget'!C16 -> Supplement | R15: ='HFR-Budget'!L16 -> 0
C16: ='HFR-Budget'!C17 -> Yardage | D16: =0.125*$R$16 -> 918.75 | E16: =0.125*$R$16 -> 918.75 | F16: 918.75 | G16: 918.75 | H16: 918.75 | I16: 918.75 | J16: 918.75 | P16: =0.0625*$R$16 -> 459.375 | Q16: =0.0625*$R$16 -> 459.375 | R16: ='HFR-Budget'!L17 -> 7350
C17: ='HFR-Budget'!C18 -> Pasture | K17: =0.1818*$R$17 -> 1999.8 | L17: =0.1818*$R$17 -> 1999.8 | M17: 1999.8 | N17: 1999.8 | O17: 1999.8 | P17: =0.0909*$R$17 -> 999.9 | R17: ='HFR-Budget'!L18 -> 11000
C18: ='HFR-Budget'!C19 -> Hauling | K18: =R18*0.5 -> 750 | P18: =R18*0.5 -> 750 | R18: ='HFR-Budget'!L19 -> 1500
C19: ='HFR-Budget'!C20 -> Veterinary | D19: =R19*0.3 -> 873.75 | I19: =R19*0.3 -> 873.75 | P19: =R19*0.4 -> 1165 | R19: ='HFR-Budget'!L20 -> 2912.5
C20: ='HFR-Budget'!C21 -> Breeding | J20: =R20 -> 6990 | R20: ='HFR-Budget'!L21 -> 6990
C21: ='HFR-Budget'!C22 -> Hired Labor | D21: =$R$21/14 -> 250 | E21: =$R$21/14 -> 250 | F21: 250 | G21: 250 | H21: 250 | I21: 250 | J21: 250 | K21: 250 | L21: 250 | M21: 250 | N21: 250 | O21: 250 | P21: 250 | Q21: 250 | R21: ='HFR-Budget'!L22 -> 3500
C22: ='HFR-Budget'!C23 -> Salt/Mineral | D22: =$R$22/14 -> 34.71428571 | E22: =$R$22/14 -> 34.71428571 | F22: 34.71428571 | G22: 34.71428571 | H22: 34.71428571 | I22: 34.71428571 | J22: 34.71428571 | K22: 34.71428571 | L22: 34.71428571 | M22: 34.71428571 | N22: 34.71428571 | O22: 34.71428571 | P22: 34.71428571 | Q22: 34.71428571 | R22: ='HFR-Budget'!L23 -> 486
C23: ='HFR-Budget'!C24 -> Marketing | Q23: =R23 -> 293.04 | R23: ='HFR-Budget'!L24 -> 293.04
C24: ='HFR-Budget'!C25 -> Commision | P24: =R24 -> 225 | R24: ='HFR-Budget'!L25 -> 225
C25: ='HFR-Budget'!C26 -> Miscellaneous | D25: =$R$25/14 -> 71.42857143 | E25: =$R$25/14 -> 71.42857143 | F25: 71.42857143 | G25: 71.42857143 | H25: 71.42857143 | I25: 71.42857143 | J25: 71.42857143 | K25: 71.42857143 | L25: 71.42857143 | M25: 71.42857143 | N25: 71.42857143 | O25: 71.42857143 | P25: 71.42857143 | Q25: 71.42857143 | R25: ='HFR-Budget'!L26 -> 1000
C26: ='HFR-Budget'!C28:D28 -> Interest on Operating Capital | Q26: =R26 -> 6217.570013 | R26: ='HFR-Budget'!L28 -> 6217.570013
B28: Total Costs | D28: =SUM(D13:D24) -> 90465.71429 | E28: 4968.464286 | F28: 5344.964286 | G28: 5721.464286 | H28: 5721.464286 | I28: 6971.714286 | J28: 13464.46429 | K28: 3034.514286 | L28: 2284.514286 | M28: 2284.514286 | N28: 2284.514286 | O28: 2284.514286 | P28: 7272.489286 | Q28: 4802.129286 | R28: =SUM(R13:R26) -> 164124.11
B31: Net Returns | D31: =D9-D28 -> -90465.71429 | E31: -4968.464286 | F31: -5344.964286 | G31: -5721.464286 | H31: -5721.464286 | I31: -6971.714286 | J31: -13464.46429 | K31: -3034.514286 | L31: -2284.514286 | M31: -2284.514286 | N31: -2284.514286 | Q31: 125697.8707 | R31: -24624.11001
B35: Table 3: Monthly Feed Requirements.
B36: Feed | D36: Units | E36: Nov | F36: Dec | G36: Jan | H36: Feb | I36: Mar | J36: Apr | K36: May | L36: Jun | M36: Jul | N36: Aug | O36: Sep | P36: Oct | Q36: Nov | R36: Dec
B38: Alfalfa Hay | D38: ton | E38: 23 | F38: 25 | G38: 27 | H38: 29 | I38: 31 | J38: 33 | K38: 35 | Q38: =47/2 -> 23.5 | R38: =49/2 -> 24.5
B39: Supplement | D39: cwt
B40: Pasture | D40: head | L40: 100 | M40: 100 | N40: 100 | O40: 100 | P40: 100 | Q40: 50
B41: Salt/Mineral | D41: cwt | E41: 2 | F41: 2 | G41: 2 | H41: 2 | I41: 2 | J41: 2 | K41: 2 | L41: 2 | M41: 2 | N41: 2 | O41: 2 | P41: 2 | Q41: 2 | R41: 1
D47: Weight | E47: Feed (ton)
C48: Nov | D48: 500 | E48: =D48*0.03*30*100/2000 -> 22.5
C49: Dec | D49: =D48+45 -> 545 | E49: =D49*0.03*30*100/2000 -> 24.525
C50: Jan | D50: =D49+45 -> 590 | E50: 26.55
C51: Feb | D51: 635 | E51: 28.575
C52: Mar | D52: 680 | E52: 30.6
C53: Apr | D53: 725 | E53: 32.625
C54: May | D54: 770 | E54: 34.65
C55: Jun | D55: 815 | E55: 36.675
C56: Jul | D56: 860 | E56: 38.7
C57: Aug | D57: 905 | E57: 40.725
C58: Sep | D58: 950 | E58: 42.75
C59: Oct | D59: 995 | E59: 44.775
C60: Nov | D60: 1040 | E60: 46.8
C61: Dec | D61: 1085 | E61: 48.825

Sheet Vet&Breeding
A1: Veterinary Expenses
B4: Number of Head | D4: Units | E4: $/Unit | F4: Nov | G4: Dec | H4: Jan | I4: Feb | J4: Mar | K4: Apr | L4: May | M4: Jun | N4: Jul | O4: Aug | P4: Sep | Q4: Oct | R4: Nov | S4: Dec | T4: Total
A5: Heifers | B5: 100
A6: Respiratory Viral | D6: dose | E6: 1.8 | F6: 1 | J6: 1 | R6: 1 | T6: =SUM(F6:S6)*$B$5*E6 -> 540
A7: Reproduction Viral | D7: dose | E7: 2.4 | J7: 1 | R7: 1 | T7: =SUM(F7:S7)*$B$5*E7 -> 480
A8: 8 Way | D8: dose | E8: 0.9 | F8: 1 | J8: 1 | R8: 1 | T8: 270
A9: Pour-On | D9: dose | E9: 0.8 | F9: 1 | J9: 1 | R9: 1 | T9: 240
A10: Bangs | D10: head | E10: 4 | F10: 1 | T10: 400
A11: Preg Check | D11: head | E11: 4 | R11: 1 | T11: 400
S12: Total | T12: =SUM(T6:T11) -> 2330
S14: $/Hd | T14: =T12/B5 -> 23.3
S16: Plus 25% | T16: =T14*1.25 -> 29.125
A17: Breeding Expenses
B20: Number of Head | D20: Units | E20: $/Unit | F20: Nov | G20: Dec | H20: Jan | I20: Feb | J20: Mar | K20: Apr | L20: May | M20: Jun | N20: Jul | O20: Aug | P20: Sep | Q20: Oct | R20: Nov | S20: Dec | T20: Total
A21: Heifers | B21: 100
A22: GnRH (Cystorelin) | D22: dose | E22: 2.6 | L22: 2 | T22: =SUM(F22:S22)*$B$5*E22 -> 520
A23: PG (Lutalyse) | D23: dose | E23: 2.9 | L23: 1 | T23: =SUM(F23:S23)*$B$5*E23 -> 290
A24: CIDR | D24: dose | E24: 12.8 | L24: 1 | T24: 1280
A25: AI Supplies | D25: head | E25: 0.5 | L25: 1 | T25: 50
A26: Semen | D26: dose | E26: 20 | L26: 1 | T26: 2000
A27: AI Technician | D27: head | E27: 6 | L27: 1 | T27: 600
A28: Clean up bull (ammortized per head cost) | D28: head | E28: =3*3000/4/B21 -> 22.5 | L28: 1 | T28: 2250
S29: Total | T29: =SUM(T22:T28) -> 6990
S31: $/Hd | T31: =T29/B21 -> 69.9
